Cogmind - Beta 10.2 @@@ ROGUE MODE // 2021.12.04 @ 19:37:34 Player: TheGreatBorealis Result: Self-destructed Performance ------------- Evolutions (2) 1000 Regions Visited (3) 600 Robots Destroyed (29) 145 Value Destroyed (693) 693 Prototype IDs (1) 20 Alien Tech Used (0) 0 Bonus (8) 8 TOTAL SCORE: 2466 Bonus ------- High Alert Combat Kills 8 Cogmind --------- Core Integrity 550/550 Matter 195/300 Energy 280/280 System Corruption 0% Temperature Cool (0) Movement Walking (120) Location -8/Materials Parts ------- > --- POWER (2) -------- Heavy Ion Engine > --- PROPULSION (4) --- Carbon-fiber Leg Carbon-fiber Leg Carbon-fiber Leg > --- UTILITY (3) ------ Heat Sink Improved Heat Sink Medium Storage Unit > --- WEAPON (2) ------- Particle Gun > --- INVENTORY (8) ---- Ion Engine Aluminum Leg Improved Aluminum Leg Improved Aluminum Leg Carbon-fiber Leg Cooling System Small Storage Unit Grenade Launcher Peak State ------------ > --- POWER ------------ Heavy Ion Engine > --- PROPULSION ------- Carbon-fiber Leg Carbon-fiber Leg Carbon-fiber Leg > --- UTILITY ---------- Heat Sink Improved Heat Sink Medium Storage Unit > --- WEAPON ----------- Small Laser Particle Gun > --- INVENTORY -------- Ion Engine Aluminum Leg Aluminum Leg Improved Aluminum Leg Improved Aluminum Leg Cooling System Small Storage Unit Grenade Launcher [Rating: 21] Favorites ----------- Power Light Nuclear Core Engine Ion Engine Power Core Light Nuclear Core Propulsion Aluminum Leg Leg Aluminum Leg Utility Cooling System Device Cooling System Storage Medium Storage Unit Weapon Particle Gun Energy Gun Particle Gun Ballistic Gun Light Assault Rifle Build | -11 -10 -9 -8 ------- Run | Scr Mat Mat Mat Slots Evolved 4 | . . 2 2 Power 1 | . . . 1 Propulsion 2 | . . 1 1 Utility 1 | . . 1 . Weapon . | . . . . Parts Attached 51 | . 8 43 . Power 6 | . 1 5 . Engine 4 | . . 4 . Core 2 | . 1 1 . Reactor . | . . . . Propulsion 23 | . 2 21 . Treads . | . . . . Leg 23 | . 2 21 . Wheel . | . . . . Hover . | . . . . Flight . | . . . . Utility 7 | . 2 5 . Device 6 | . 2 4 . Storage 1 | . . 1 . Processor . | . . . . Hackware . | . . . . Protection . | . . . . Artifact . | . . . . Weapon 15 | . 3 12 . Energy Gun 12 | . 3 9 . Energy Cannon . | . . . . Ballistic Gun 3 | . . 3 . Ballistic Cannon . | . . . . Launcher . | . . . . Special Weapon . | . . . . Impact Weapon . | . . . . Slashing Weapon . | . . . . Piercing Weapon . | . . . . Special Melee Weapon . | . . . . Unidentified Prototypes 1 | . . 1 . Parts Lost 12 | . 1 10 1 Power 2 | . . 2 . Propulsion 2 | . . 2 . Utility 2 | . . 2 . Weapon 6 | . 1 4 1 Highest Loss Streak 5 | . 1 5 1 Average Slot Usage (%) 94 | . 95 94 81 Engine 7 | . 6 7 9 Core 4 | . 7 2 . Leg 30 | . 28 31 27 Device 16 | . 9 20 18 Storage 12 | . 14 11 9 Energy Gun 15 | . 18 13 18 Ballistic Gun 7 | . 8 6 . Naked Turns . | . . . . Heaviest Build 23 | 12 17 23 22 Greatest Support 45 | 20 20 45 45 Greatest Overweight (x) 6 | . . 6 . Average Overweight (x) . | . . . . Largest Inventory Capacity 8 | 6 6 8 8 Average Capacity 7 | 6 6 7 8 Most Carried 8 | 6 6 8 8 Average Carried 6 | 6 5 6 8 Final Capacity 8 | 6 6 8 8 Final Carried 8 | 6 6 8 8 Class Distribution -------------------- 72% | Mutant 27% | Scavenger-Mutant Dominant Class ---------------- Mutant | -10/Materials Mutant | -9/Materials Scavenger-Mutant | -8/Materials Resources | -11 -10 -9 -8 ----------- Run | Scr Mat Mat Mat Matter Collected 657 | 200 88 369 . Remotely . | . . . . Salvage Created 965 | . 293 672 . Parts 55 | . 15 40 . Haulers Intercepted 4 | . 1 3 . Recyclers Shooed . | . . . . Parts Field Recycled . | . . . . Retrieved Matter . | . . . . Parts Self-Destructed . | . . . . Prevented . | . . . . Kills | -11 -10 -9 -8 ------- Run | Scr Mat Mat Mat Combat Hostiles Destroyed 23 | . 5 18 . Guns 23 | . 5 18 . Classes Destroyed 5 | . 3 2 . Hauler 4 | . 1 3 . Watcher 2 | . 1 1 . Swarmer 8 | . . 8 . Grunt 14 | . 5 9 . Sentry 1 | . . 1 . Best Kill Streak 6 | . 3 6 . Combat Bots Only 6 | . 3 6 . Max Kills in Single Turn 1 | . 1 1 . Gunslinging . | . . . . Exploded . | . . . . Melee . | . . . . Uniques/NPCs Destroyed . | . . . . Combat | -11 -10 -9 -8 -------- Run | Scr Mat Mat Mat Damage Taken 1409 | . 210 1184 15 Core 211 | . 48 163 . Absorbed by Shields . | . . . . Core Remaining (%) 79 | 100 80 59 . Volleys Fired 80 | . 14 66 . Largest 2 | . 2 2 . Hottest 130 | . 130 130 . Shots Fired 143 | . 27 116 . Gun 143 | . 27 116 . Cannon . | . . . . Launcher . | . . . . Special . | . . . . Kinetic 60 | . 9 51 . Thermal 76 | . 11 65 . Explosive . | . . . . Electromagnetic 7 | . 7 . . Robot Hit Streak 15 | . 11 15 . Robot Miss Streak 4 | . 2 4 . Penetration Max . | . . . . Secondary Targets 2 | . . 2 . Max Gunslinging Chain 1 | . . 1 . Shots Hit Robots 104 | . 21 83 . Core Hits 47 | . 11 36 . Critical Hits . | . . . . Critical Kills . | . . . . Critical Parts Destroyed . | . . . . Melee Attacks . | . . . . Impact . | . . . . Slashing . | . . . . Piercing . | . . . . Sneak Attacks . | . . . . Combat Hostiles . | . . . . Follow-up Attacks . | . . . . Damage Inflicted 1235 | . 277 958 . Guns 1234 | . 277 957 . Cannons . | . . . . Explosions . | . . . . Melee . | . . . . Ramming 1 | . . 1 . Kinetic 440 | . 45 395 . Thermal 720 | . 158 562 . Explosive . | . . . . Electromagnetic 74 | . 74 . . Impact . | . . . . Slashing . | . . . . Piercing . | . . . . Highest Corruption . | . . . . Average Corruption . | . . . . Corruption Purged . | . . . . Overload Shots . | . . . . Overflow Damage . | . . . . Projectiles . | . . . . Explosions . | . . . . Melee . | . . . . Knockbacks . | . . . . Impact . | . . . . Kinetic . | . . . . Secondary . | . . . . Self-Inflicted Damage . | . . . . Shots . | . . . . Rammed 2 | . . 2 . Targets Rammed 3 | . . 3 . Kicked 1 | . . 1 . Crushed . | . . . . Highest Temperature 64 | . 64 19 . Average Temperature 19 | . 19 8 . Received Heat Transfer 462 | . 114 339 9 Siege Activations . | . . . . Robots Corrupted . | . . . . Combat Hostiles . | . . . . Parts Fried 1 | . 1 . . Impact Corruptions . | . . . . Robots Melted . | . . . . Combat Hostiles . | . . . . Parts Melted 2 | . . 2 . Heat Transferred 1698 | . 358 1340 . Parts Sabotaged . | . . . . Parts Stolen . | . . . . Parts Stripped . | . . . . Power Chain Reactions . | . . . . Missiles Intercepted . | . . . . Alert | -11 -10 -9 -8 ------- Run | Scr Mat Mat Mat Peak Influence 408 | . 119 408 127 Initial 122 | . . 33 122 Average 150 | . 28 232 122 Maximum Alert Level 2 | . . 2 . Low Security (%) 55 | 100 100 25 100 Level 1 43 | . . 73 . Level 2 . | . . . . Level 3 . | . . . . Level 4 . | . . . . Level 5 . | . . . . High Security . | . . . . Max Security . | . . . . Squads Dispatched 2 | . 1 1 . Investigation 1 | . 1 . . Extermination . | . . . . Reinforcement 1 | . . 1 . Assault . | . . . . Garrison . | . . . . Intercept . | . . . . Construction Impeded . | . . . . Haulers Reinforced . | . . . . Stealth | -11 -10 -9 -8 --------- Run | Scr Mat Mat Mat Distress Signals 2 | . 1 1 . Communications Jammed . | . . . . Distress Signals . | . . . . Times Spotted 41 | . 12 28 1 Peak Tracking Total 9 | . 4 9 1 Tactical Retreats 4 | . 2 2 . Traps | -11 -10 -9 -8 ------- Run | Scr Mat Mat Mat Traps Triggered 5 | . . 5 . Indirectly . | . . . . Trap Hack Attempts . | . . . . Triggered . | . . . . Disarmed . | . . . . Reprogrammed . | . . . . Reused . | . . . . Traps Extracted . | . . . . Installed . | . . . . Triggered . | . . . . Machines | -11 -10 -9 -8 ---------- Run | Scr Mat Mat Mat Machines Disabled . | . . . . Max in Single Turn . | . . . . Machines Sabotaged . | . . . . Garrisons Compromised . | . . . . Overloaded Fab Kills . | . . . . Fab Network Shutdowns . | . . . . Hacking | -11 -10 -9 -8 --------- Run | Scr Mat Mat Mat Machines Accessed 8 | . 5 3 . Terminals 8 | . 5 3 . Fabricators . | . . . . Repair Stations . | . . . . Recycling Units . | . . . . Scanalyzers . | . . . . Garrison Access . | . . . . Total Hacks 34 | . 17 17 . Successful 20 | . 12 8 . Failed 14 | . 5 9 . Catastrophic . | . . . . Database Lockouts . | . . . . Manual 25 | . 13 12 . Terminals 34 | . 17 17 . Fabricators . | . . . . Repair Stations . | . . . . Recycling Units . | . . . . Scanalyzers . | . . . . Garrison Access . | . . . . Terminal Hacks 10 | . 5 5 . Terminal Index 2 | . 1 1 . Alert Level 1 | . . 1 . Unreport Threat 2 | . 2 . . Hauler Manifests 1 | . . 1 . Registered Components 1 | . 1 . . Zone Layout 3 | . 1 2 . Fabricator Hacks . | . . . . Repair Station Hacks . | . . . . Recycling Unit Hacks . | . . . . Scanalyzer . | . . . . Garrison Access Hacks . | . . . . Unauthorized Hacks 10 | . 7 3 . Terminals 10 | . 7 3 . Track 1 | . 1 . . Botnet 6 | . 4 2 . Operators 2 | . 1 1 . Sabotage 1 | . 1 . . Fabricators . | . . . . Repair Stations . | . . . . Recycling Units . | . . . . Scanalyzers . | . . . . Garrison Access . | . . . . Data Cores Recovered . | . . . . Used . | . . . . Hacking Detections 8 | . 5 3 . Full Trace Events . | . . . . Feedback Events . | . . . . Feedback Blocked . | . . . . Robot Schematics Acquired . | . . . . Robots Built . | . . . . Matter . | . . . . Time . | . . . . Total Robot Build Rating . | . . . . Part Schematics Acquired . | . . . . Parts Built . | . . . . Matter . | . . . . Time . | . . . . Total Part Build Rating . | . . . . Parts Repaired . | . . . . Time . | . . . . Parts Recycled . | . . . . Recycled Matter . | . . . . Retrieved Matter . | . . . . Retrieved Components . | . . . . Parts Scanalyzed . | . . . . Part Schematics Acquired . | . . . . Parts Damaged . | . . . . Bothacking | -11 -10 -9 -8 ------------ Run | Scr Mat Mat Mat Used RIF Installer . | . . . . Robots Hacked . | . . . . Non-combat . | . . . . Combat . | . . . . Robot Hacks Applied . | . . . . Relay Couplers Released . | . . . . Robots Rewired . | . . . . Allies Hacked . | . . . . Hacks Repelled . | . . . . Allies | -11 -10 -9 -8 -------- Run | Scr Mat Mat Mat Total Allies . | . . . . Largest Group . | . . . . Highest-Rated Group . | . . . . Highest-Rated Ally . | . . . . Total Orders . | . . . . Ally Attacks . | . . . . Total Damage . | . . . . Kills . | . . . . Allies Corrupted . | . . . . Allies Melted . | . . . . Intel | -11 -10 -9 -8 ------- Run | Scr Mat Mat Mat Robot Analysis Total . | . . . . Derelict Logs Recovered . | . . . . Drone Launches . | . . . . Drone Recoveries . | . . . . Exploration | -11 -10 -9 -8 ------------- Run | Scr Mat Mat Mat Turns Passed 1081 | 3 428 639 11 Spaces Moved 557 | 3 279 266 9 Core 1 | . . 1 . Treads . | . . . . Legs 556 | 3 279 265 9 Wheels . | . . . . Hover . | . . . . Flight . | . . . . Fastest Speed 120 | 120 120 120 120 Average Speed 120 | 120 120 121 120 Slowest Speed 350 | 120 120 350 120 Overloaded Moves . | . . . . Propulsion Burnouts . | . . . . Robots Hopped . | . . . . Cave-ins Triggered . | . . . . Exploration Rate (%) 20 | 2 51 26 3 Regions Visited 3 Branch Regions . Pre-discovered Areas . | . . . . Known Exits Taken . | . . . . Unknown Exits Taken 3 | 1 1 1 . Scrap Searched . | . . . . Spaces Dug . | . . . . Terrain Destroyed . | . . . . Melee . | . . . . Projectile . | . . . . AOE . | . . . . Terrain Rammed . | . . . . Walls Destroyed . | . . . . Machines Disabled . | . . . . Actions | -11 -10 -9 -8 --------- Run | Scr Mat Mat Mat Total 824 | 2 349 464 9 Wait 100 | . 37 63 . Move 554 | 2 278 265 9 Hop . | . . . . Pick Up 10 | . 3 7 . Fast Attach 26 | . 4 22 . Attach 9 | . 1 8 . Detach 3 | . 1 2 . Swap 16 | . 3 13 . Drop 23 | . 8 15 . Fire 80 | . 14 66 . Melee . | . . . . Ram . | . . . . Kick 3 | . . 3 . Crush . | . . . . Escape Stasis . | . . . . Rewire . | . . . . Trap . | . . . . Miscellaneous . | . . . . Route ------- -11/Scrapyard -10/Materials (discovered 3 exits: *Mat / [*Min x2]) -9/Materials -8/Materials History --------- Turn | Location | Event 1 | -11/Scrapyard | Discovered new exit (range 3) 4 | -11/Scrapyard | Entered Materials 34 | -10/Materials | Discovered new exit (range 16) 308 | -10/Materials | Build established: Mutant 338 | -10/Materials | Discovered new exit (range 9) 378 | -10/Materials | Discovered new exit (range 13) 432 | -10/Materials | Entered another Materials area 432 | -9/Materials | Evolved 2 slots: Propulsion x1, Utility x1 606 | -9/Materials | Lost 4 parts (2p2w) 932 | -9/Materials | Lost 5 parts (1n2u2w) 1056 | -9/Materials | Discovered new exit (range 13) 1071 | -9/Materials | Entered another Materials area 1071 | -8/Materials | Evolved 2 slots: Power x1, Propulsion x1 1082 | -8/Materials | Self-destructed Last Messages --------------- 00991_ U-05 Engineer lays Concrete. 00992_ Acquired Particle Gun. 00997_ Acquired Aluminum Leg. 01006_ Acquired Sml. Laser. 01009_ Acquired Imp. Aluminum Leg. 01029_ G-34 Mercenary destroyed. 01030_ K-01 Serf collects debris. 01033_ Connecting with Terminal... >>Alert(Check) Current Alert Level: 1-M 01033_ Connecting with Terminal... 01034_ K-01 Serf collects debris. 01044_ Dropped Aluminum Leg. 01052_ Acquired Carbon-fiber Leg. 01056_ EXIT=FOUND PARAMETERS=POWER_1,PROPULSION_1 LOCATION=UNKNOWN GOAL=ESCAPE 01075_ K-01 Serf collects debris. 01080_ Sml. Laser destroyed. Map ----- +----------------------------------------------------+ | ??????????????????????????????????????????????? | | ??????????????????????????????????????????????? | | ??????????????????????????????????????????????? | | ??????????????????????????????????????????????? | | ??????????????????????????????????????????????? | | ??????????????????????????????????????????????? | | ??????????????????????????????????????????????? | | ??????????????????????????????????????????????? | | ??????????????????????????????????????????????? | | ??????????????????????????????????????????????? | | ??????????????????????????????????????????????? | | ??????????????????????????????????????????????? | | ??????????????????????????????????????????????? | | ??????????????????????????????????????????????? | | ??????????????????????????????????????????????? | | ??????????????????????????????????????????????? | | ??????????????????????????????????????????????? | | ??????????????????????????????????????????????? | | ??????????????????????????????????????????????? | | ??????????????????????????????????????????????? | | ??????????????????????????????????????????????? | | ???????????? ###+##################?????????? | | ??????????? #?????????? | | ??????????? #?????????? | | ??????????? #?????????? | | ???????????????##########@###########?????????? | | ??????????????????????? ??????????????????? | | ??????????????????????#""" #????????????????? | | ??????????????????????#""" #????????????????? | | ??????????????????????#""" !#????????????????? | | ??????????????????????# #????????????????? | | ??????????????????????# #????????????????? | | ??????????????????????#####+##????????????????? | | ??????????????????????????????????????????????? | | ??????????????????????????????????????????????? | | ??????????????????????????????????????????????? | | ??????????????????????????????????????????????? | | ??????????????????????????????????????????????? | | ??????????????????????????????????????????????? | | ??????????????????????????????????????????????? | | ??????????????????????????????????????????????? | | ??????????????????????????????????????????????? | | ??????????????????????????????????????????????? | | ??????????????????????????????????????????????? | | ??????????????????????????????????????????????? | | ??????????????????????????????????????????????? | | ??????????????????????????????????????????????? | | ??????????????????????????????????????????????? | | ??????????????????????????????????????????????? | | ??????????????????????????????????????????????? | +----------------------------------------------------+ Best States ------------- Heat Dissipation 72 Energy Generation 14 Energy Capacity 280 Matter Stores 300 Matter Capacity 300 Sight Range 16 Terrain Scan Range 14 Terrain Scan Density 10 Evasion (%) 40 Item Schematics ----------------- None Robot Schematics ------------------ None Fabricated ------------ Nothing Alien Tech Used ----------------- None Achievements -------------- None Challenges ------------ None Game ------ Seed MiniCombatDoomcannon Manual? 0 Play Time 00:15:32 Cumulative 113.5 hours Start 2021.11.03 @ 16:53:10 End 2021.12.04 @ 19:37:34 Sessions 3 Manual Loads 0 Difficulty Rogue Special Mode None Game No. 190 Rogue 190 Adventurer 0 Explorer 0 Win Type - Total 0 Types 0/0/0/0/0/0/0/0/0 Lore% 61 Gallery% 64 Achievement% 46 Wizard Run 0 Options --------- ASCII 0 Keyboard 1 Movement Numpad Keybinds 0 Fullscreen 2 Font 18/Terminus Map View 76x50 Tactical HUD 1 Map Filters NONE Filters NONE Steam 1 RUN: 1ab6419e-86ab-4a51-89fe-5dae25e82fa3